fUSD/lending_fUSD_20250103
["ID","MTS","AMOUNT","RATE_DAILY","PERIOD"]
[347526868,1735903857146,-500.0,9.535e-05,2]
[347526869,1735903857156,-512.48,9.535e-05,2]
[347526870,1735903857165,-500.0,9.535e-05,2]
[347526871,1735903857175,-806.61,9.535e-05,2]
[347526872,1735903857184,-1175.7,9.535e-05,2]
[347526873,1735903857194,-4371.78,9.535e-05,2]
[347526874,1735903857203,-1349.18,9.535e-05,2]
[347526875,1735903857213,-500.0,9.535e-05,2]
[347526876,1735903857223,-500.0,9.535e-05,2]
[347526877,1735903857232,-2014.48,9.535e-05,2]
[347526878,1735903857242,-575.95,9.535e-05,2]
[347526879,1735903857252,-767.03,9.535e-05,2]
[347526880,1735903857262,-1279.74,9.535e-05,2]
[347526881,1735903857271,-500.0,9.535e-05,2]
[347526882,1735903857280,-9955.92,9.535e-05,2]
[347526883,1735903857290,-1327.33,9.535e-05,2]
[347526884,1735903857299,-1309.52,9.535e-05,2]
[347526885,1735903857309,-1049.06,9.535e-05,2]
[347526886,1735903857319,-10938.91,9.535e-05,2]
[347526887,1735903857328,-500.0,9.535e-05,2]
[347526888,1735903857338,-500.0,9.535e-05,2]
[347526889,1735903857348,-664.53,9.535e-05,2]
[347526890,1735903857359,-555.50264487,9.535e-05,2]
[347526891,1735903857371,-1236.06,9.535e-05,2]
[347526892,1735903857380,-2460.33,9.535e-05,2]
[347526893,1735903857391,-500.0,9.535e-05,2]
[347526894,1735903857400,-504.97,9.535e-05,2]
[347526895,1735903857410,-1049.3,9.535e-05,2]
[347526896,1735903857420,-500.0,9.535e-05,2]
[347526897,1735903857430,-500.0,9.535e-05,2]
[347526898,1735903857440,-500.0,9.535e-05,2]
[347526899,1735903857449,-1004.02,9.535e-05,2]
[347526900,1735903857458,-500.0,9.535e-05,2]
[347526901,1735903857468,-500.0,9.535e-05,2]
[347526902,1735903857478,-1789.45,9.535e-05,2]
[347526903,1735903857487,-554.9,9.535e-05,2]
[347526904,1735903857497,-906.72,9.535e-05,2]
[347526905,1735903857506,-553.7,9.535e-05,2]
[347526906,1735903857515,-500.0,9.535e-05,2]
[347526907,1735903857524,-1337.39,9.535e-05,2]
[347526908,1735903857534,-891.73,9.535e-05,2]
[347526909,1735903857543,-3848.06,9.535e-05,2]
[347526910,1735903857553,-1814.07,9.535e-05,2]
[347526911,1735903857562,-697.05,9.535e-05,2]
[347526912,1735903857572,-916.41,9.535e-05,2]
[347526913,1735903857581,-500.0,9.535e-05,2]
[347526914,1735903857591,-500.0,9.535e-05,2]
[347526915,1735903857600,-500.0,9.535e-05,2]
[347526916,1735903857610,-671.77,9.535e-05,2]
[347526917,1735903857620,-500.0,9.535e-05,2]
[347526918,1735903857630,-1400.09,9.535e-05,2]
[347526919,1735903857640,-706.51,9.535e-05,2]
[347526920,1735903857653,-1126.89,9.535e-05,2]
[347526921,1735903857667,-500.0,9.535e-05,2]
[347526922,1735903857680,-930.74,9.535e-05,2]
[347526923,1735903857691,-601.77,9.535e-05,2]
[347526924,1735903857704,-784.61,9.535e-05,2]
[347526925,1735903857716,-903.83,9.535e-05,2]
[347526926,1735903857730,-2126.45,9.535e-05,2]
[347526927,1735903857744,-1232.35,9.535e-05,2]
[347526928,1735903857757,-4086.85,9.535e-05,2]
[347526929,1735903857768,-629.11,9.535e-05,2]
[347526930,1735903857781,-1624.67,9.535e-05,2]
[347526931,1735903857793,-1521.21,9.535e-05,2]
[347526932,1735903857806,-500.0,9.535e-05,2]
[347526933,1735903857820,-624.24,9.535e-05,2]
[347526934,1735903857833,-1753.83,9.535e-05,2]
[347526935,1735903857846,-500.0,9.535e-05,2]
[347526936,1735903857859,-1708.38,9.535e-05,2]
[347526937,1735903857876,-519.48,9.535e-05,2]
[347526938,1735903857889,-4100.57,9.535e-05,2]
[347526939,1735903857903,-674.1,9.535e-05,2]
[347526940,1735903857917,-500.0,9.535e-05,2]
[347526941,1735903857930,-2066.74,9.535e-05,2]
[347526942,1735903857942,-500.0,9.535e-05,2]
[347526943,1735903857954,-831.55,9.535e-05,2]
[347526944,1735903857968,-500.0,9.535e-05,2]
[347526945,1735903857980,-500.0,9.535e-05,2]
[347526946,1735903857992,-11694.5,9.535e-05,2]
[347526947,1735903858003,-4058.85,9.535e-05,2]
[347526948,1735903858014,-637.0,9.535e-05,2]
[347526949,1735903858027,-620.04,9.535e-05,2]
[347526950,1735903858042,-1381.08,9.535e-05,2]
[347526951,1735903858052,-1156.88,9.535e-05,2]
[347526952,1735903858062,-906.08,9.535e-05,2]
[347526953,1735903858073,-500.0,9.535e-05,2]
[347526954,1735903858086,-500.0,9.535e-05,2]
[347526955,1735903858101,-2259.83,9.535e-05,2]
[347526956,1735903858113,-500.0,9.535e-05,2]
[347526957,1735903858124,-3858.47,9.535e-05,2]
[347526958,1735903858134,-500.0,9.535e-05,2]
[347526959,1735903858146,-666.0,9.535e-05,2]
[347526960,1735903858159,-500.0,9.536e-05,2]
[347526961,1735903858170,-500.0,9.536e-05,2]
[347526962,1735903858181,-700.66,9.536e-05,2]
[347526963,1735903858193,-500.0,9.536e-05,2]
[347526964,1735903858204,-7939.32,9.536e-05,2]
[347526965,1735903858217,-500.0,9.536e-05,2]
[347526966,1735903858228,-500.0,9.536e-05,2]
[347526967,1735903858240,-635.48,9.536e-05,2]
[347526968,1735903858252,-500.0,9.536e-05,2]
[347526969,1735903858263,-5549.62,9.536e-05,2]
[347526970,1735903858275,-557.7,9.536e-05,2]
[347526971,1735903858286,-636.0,9.536e-05,2]
[347526972,1735903858298,-500.0,9.536e-05,2]
[347526973,1735903858310,-500.0,9.536e-05,2]
[347526974,1735903858321,-520.71,9.536e-05,2]
[347526975,1735903858333,-641.32,9.536e-05,2]
[347526976,1735903858344,-611.08,9.536e-05,2]
[347526977,1735903858357,-500.0,9.536e-05,2]
[347526978,1735903858370,-7296.63,9.536e-05,2]
[347526979,1735903858381,-500.0,9.536e-05,2]
[347526980,1735903858392,-822.03,9.536e-05,2]
[347526981,1735903858404,-543.86,9.536e-05,2]
[347526982,1735903858415,-718.88,9.536e-05,2]
[347526983,1735903858427,-833.36,9.536e-05,2]
[347526984,1735903858439,-500.0,9.536e-05,2]
[347526985,1735903858450,-4089.89,9.536e-05,2]
[347526986,1735903858463,-1230.62,9.536e-05,2]
[347526987,1735903858476,-500.0,9.536e-05,2]
[347526988,1735903858488,-7327.55,9.536e-05,2]
[347526989,1735903858500,-500.0,9.536e-05,2]
[347526990,1735903858511,-500.0,9.536e-05,2]
[347526991,1735903858523,-500.0,9.536e-05,2]
[347526992,1735903858535,-948.85,9.536e-05,2]
[347526993,1735903858546,-500.0,9.536e-05,2]
[347526994,1735903858558,-1278.67,9.536e-05,2]
[347526995,1735903858569,-1574.68,9.536e-05,2]
[347526996,1735903858581,-534.93,9.536e-05,2]
[347526997,1735903858592,-500.0,9.536e-05,2]
[347526998,1735903858604,-1018.56,9.536e-05,2]
[347526999,1735903858618,-6154.2,9.536e-05,2]
[347527000,1735903858634,-1511.16,9.536e-05,2]
[347527001,1735903858646,-836.15,9.536e-05,2]
[347527002,1735903858657,-500.0,9.536e-05,2]
[347527003,1735903858669,-500.0,9.536e-05,2]
[347527004,1735903858680,-849.26,9.536e-05,2]
[347527005,1735903858692,-1027.14,9.536e-05,2]
[347527006,1735903858703,-632.01,9.536e-05,2]
[347527007,1735903858714,-909.52,9.536e-05,2]
[347527008,1735903858726,-1663.85,9.536e-05,2]
[347527009,1735903858737,-3662.35,9.536e-05,2]
[347527010,1735903858749,-1377.16,9.536e-05,2]
[347527011,1735903858760,-526.73,9.536e-05,2]
[347527012,1735903858771,-793.4,9.536e-05,2]
[347527013,1735903858783,-500.0,9.536e-05,2]
[347527014,1735903858794,-500.0,9.536e-05,2]
[347527015,1735903858806,-545.36,9.536e-05,2]
[347527016,1735903858818,-500.0,9.536e-05,2]
[347527017,1735903858828,-661.81,9.536e-05,2]
[347527018,1735903858840,-400.41046138,9.536e-05,2]
[347527019,1735903858851,-647.05,9.536e-05,2]
[347527020,1735903858864,-2889.36,9.536e-05,2]
[347527021,1735903858878,-3413.73,9.536e-05,2]
[347527022,1735903858889,-510.38,9.536e-05,2]
[347527023,1735903858901,-713.31,9.536e-05,2]
[347527024,1735903858912,-500.0,9.536e-05,2]
[347527025,1735903858923,-1305.11,9.536e-05,2]
[347527026,1735903858935,-540.79,9.536e-05,2]
[347527027,1735903858948,-1566.1,9.536e-05,2]
[347527028,1735903858960,-500.0,9.536e-05,2]
[347527029,1735903858971,-3823.37,9.536e-05,2]
[347527030,1735903858983,-2969.57,9.536e-05,2]
[347527031,1735903858994,-732.01,9.536e-05,2]
[347527032,1735903859006,-500.0,9.536e-05,2]
[347527033,1735903859017,-2547.69,9.536e-05,2]
[347527034,1735903859029,-500.0,9.536e-05,2]
[347527035,1735903859041,-500.0,9.536e-05,2]
[347527036,1735903859052,-502.24903171,9.536e-05,2]
[347527037,1735903859064,-500.0,9.536e-05,2]
[347527038,1735903859076,-590.72,9.536e-05,2]
[347527039,1735903859087,-708.21,9.536e-05,2]
[347527040,1735903859099,-1451.02,9.536e-05,2]
[347527041,1735903859111,-604.56,9.536e-05,2]
[347527042,1735903859123,-1239.18,9.536e-05,2]
[347527043,1735903859135,-1012.03,9.536e-05,2]
[347527044,1735903859146,-500.0,9.536e-05,2]
[347527045,1735903859159,-1218.93,9.536e-05,2]
[347527046,1735903859172,-500.0,9.536e-05,2]
[347527047,1735903859184,-500.0,9.536e-05,2]
[347527048,1735903859196,-500.0,9.536e-05,2]
[347527049,1735903859208,-500.0,9.536e-05,2]
[347527050,1735903859220,-500.0,9.536e-05,2]
[347527051,1735903859231,-500.0,9.536e-05,2]
[347527052,1735903859242,-841.48,9.536e-05,2]
[347527053,1735903859254,-856.82,9.536e-05,2]
[347527054,1735903859265,-500.0,9.536e-05,2]
[347527055,1735903859276,-6014.05,9.536e-05,2]
[347527056,1735903859287,-1206.92,9.536e-05,2]
[347527057,1735903859299,-847.59,9.536e-05,2]
[347527058,1735903859310,-500.0,9.536e-05,2]
[347527059,1735903859322,-500.0,9.536e-05,2]
[347527060,1735903859333,-1042.25,9.536e-05,2]
[347527061,1735903859344,-808.75,9.536e-05,2]
[347527062,1735903859355,-500.0,9.536e-05,2]
[347527063,1735903859372,-2043.7,9.536e-05,2]
[347527064,1735903859383,-845.37,9.536e-05,2]
[347527065,1735903859394,-500.0,9.536e-05,2]
[347527066,1735903859405,-1103.33,9.536e-05,2]
[347527067,1735903859416,-655.99,9.536e-05,2]
[347527068,1735903859428,-640.49,9.536e-05,2]
[347527069,1735903859439,-767.36,9.536e-05,2]
[347527070,1735903859450,-1893.34,9.536e-05,2]
[347527071,1735903859462,-1366.68,9.536e-05,2]
[347527072,1735903859473,-500.0,9.536e-05,2]
[347527073,1735903859484,-2621.28,9.536e-05,2]
[347527074,1735903859496,-500.0,9.536e-05,2]
[347527075,1735903859507,-1163.41,9.536e-05,2]
[347527076,1735903859518,-500.0,9.536e-05,2]
[347527077,1735903859529,-4056.18,9.536e-05,2]
[347527078,1735903859541,-1149.16,9.536e-05,2]
[347527079,1735903859552,-500.0,9.536e-05,2]
[347527080,1735903859564,-7683.91,9.536e-05,2]
[347527081,1735903859576,-1017.12,9.536e-05,2]
[347527082,1735903859588,-1827.02,9.536e-05,2]
[347527083,1735903859599,-6916.34,9.536e-05,2]
[347527084,1735903859610,-1147.15,9.536e-05,2]
[347527085,1735903859622,-1250.64,9.536e-05,2]
[347527086,1735903859633,-2892.25,9.536e-05,2]
[347527087,1735903859644,-533.34,9.536e-05,2]
[347527088,1735903859656,-1470.8,9.536e-05,2]
[347527089,1735903859666,-1308.98,9.536e-05,2]
[347527090,1735903859678,-820.99,9.536e-05,2]
[347527091,1735903859689,-500.0,9.536e-05,2]
[347527092,1735903859700,-531.16,9.536e-05,2]
[347527093,1735903859712,-870.07,9.536e-05,2]
[347527094,1735903859725,-500.0,9.536e-05,2]
[347527095,1735903859737,-955.16,9.536e-05,2]
[347527096,1735903859748,-2096.11,9.536e-05,2]
[347527097,1735903859760,-1992.0,9.536e-05,2]
[347527098,1735903859773,-1066.78,9.536e-05,2]
[347527099,1735903859784,-1194.8,9.536e-05,2]
[347527100,1735903859794,-1498.73,9.536e-05,2]
[347527101,1735903859805,-500.0,9.536e-05,2]
[347527102,1735903859817,-500.0,9.536e-05,2]
[347527103,1735903859828,-1403.54,9.536e-05,2]
[347527104,1735903859839,-953.21,9.536e-05,2]
[347527105,1735903859850,-1003.93,9.536e-05,2]
[347527106,1735903859862,-500.0,9.536e-05,2]
[347527107,1735903859875,-1239.98,9.536e-05,2]
[347527108,1735903859886,-801.59,9.536e-05,2]
[347527109,1735903859897,-802.33,9.536e-05,2]
[347527110,1735903859910,-4276.72,9.536e-05,2]
[347527111,1735903859922,-886.72,9.536e-05,2]
[347527112,1735903859932,-1438.69,9.536e-05,2]
[347527113,1735903859944,-3850.57,9.536e-05,2]
[347527114,1735903859955,-5038.93,9.536e-05,2]
[347527115,1735903859966,-2593.99,9.536e-05,2]
[347527116,1735903859977,-1284.41,9.536e-05,2]
[347527117,1735903859988,-500.0,9.536e-05,2]
[347527118,1735903859999,-3257.07,9.536e-05,2]
[347527119,1735903860010,-1096.88,9.536e-05,2]
[347527120,1735903860021,-500.0,9.536e-05,2]
[347527121,1735903860032,-6894.52,9.536e-05,2]
[347527122,1735903860044,-500.0,9.536e-05,2]
[347527123,1735903860055,-936.58,9.536e-05,2]
[347527124,1735903860067,-571.69,9.536e-05,2]
[347527125,1735903860079,-500.0,9.536e-05,2]
[347527126,1735903860091,-3284.22,9.536e-05,2]
[347527127,1735903860102,-3387.43,9.536e-05,2]
[347527128,1735903860114,-429.47,9.536e-05,2]
[347527129,1735903860125,-1133.0,9.536e-05,2]
[347527130,1735903860136,-917.17,9.536e-05,2]
[347527131,1735903860147,-500.0,9.536e-05,2]
[347527132,1735903860158,-1261.59,9.536e-05,2]
[347527133,1735903860170,-500.0,9.536e-05,2]
[347527134,1735903860181,-500.0,9.536e-05,2]
[347527135,1735903860192,-702.9,9.536e-05,2]
[347527136,1735903860203,-4733.92,9.536e-05,2]
[347527137,1735903860214,-3501.61,9.536e-05,2]
[347527138,1735903860225,-509.49,9.536e-05,2]
[347527139,1735903860236,-588.73,9.536e-05,2]
[347527140,1735903860247,-500.0,9.536e-05,2]
[347527141,1735903860259,-500.0,9.537e-05,2]
[347527142,1735903860270,-500.0,9.537e-05,2]
[347527143,1735903860281,-3301.88,9.537e-05,2]
[347527144,1735903860292,-1679.44,9.537e-05,2]
[347527145,1735903860303,-7313.71,9.537e-05,2]
[347527146,1735903860314,-9786.66,9.537e-05,2]
[347527147,1735903860326,-500.0,9.557e-05,2]
[347527148,1735903860337,-1850398.21443186,9.558e-05,2]
[347527149,1735903860348,-334429.3745617,9.598e-05,2]
[347527150,1735903860361,-186.73709841,9.598e-05,2]
[347527151,1735903860372,-150.0,9.618e-05,2]
[347527152,1735903860383,-634.0,9.618e-05,2]
[347527153,1735903860395,-566.0,9.618e-05,2]
[347527154,1735903860406,-1859.0,9.618e-05,2]
[347527155,1735903860417,-916.0,9.618e-05,2]
[347527156,1735903860428,-819.0,9.618e-05,2]
[347527157,1735903860439,-1257.586,9.618e-05,2]
[347527158,1735903860449,-3775.0,9.618e-05,2]
[347527159,1735903860461,-536.0,9.618e-05,2]
[347527160,1735903860471,-3720.0,9.618e-05,2]
[347527161,1735903860482,-3893.0,9.618e-05,2]
[347527162,1735903860493,-1267.0,9.618e-05,2]
[347527163,1735903860504,-2014.0,9.618e-05,2]
[347527164,1735903860515,-150.636,9.618e-05,2]
[347527165,1735903860526,-678.491,9.618e-05,2]
[347527166,1735903860537,-159.551,9.62e-05,2]
[347527167,1735903860548,-6693.81,9.67e-05,2]
[347527168,1735903860558,-29999.99,9.67e-05,2]
[347527169,1735903860569,-500.0,9.694e-05,2]
[347527170,1735903860580,-429.51484354,9.772e-05,2]
[347527171,1735903860591,-2200.0,9.8e-05,3]
[347527172,1735903860601,-500.0,9.807e-05,2]
[347527173,1735903860614,-500.0,9.807e-05,2]
[347527174,1735903860624,-581.16,9.808e-05,2]
[347527175,1735903860635,-1343.21,9.808e-05,2]
[347527176,1735903860646,-500.0,9.808e-05,2]
[347527177,1735903861084,-500.0,9.808e-05,2]
[347527178,1735903861122,-847.24,9.808e-05,2]
[347527179,1735903861141,-1416.5,9.808e-05,2]
[347527180,1735903861154,-500.0,9.808e-05,2]
[347527181,1735903861164,-500.0,9.808e-05,2]
[347527182,1735903861175,-1339.06,9.808e-05,2]
[347527183,1735903861184,-500.0,9.808e-05,2]
[347527184,1735903861193,-1342.34,9.808e-05,2]
[347527185,1735903861202,-1066.66,9.808e-05,2]
[347527186,1735903861211,-822.34,9.808e-05,2]
[347527187,1735903861220,-716.38,9.808e-05,2]
[347527188,1735903861229,-1257.11,9.808e-05,2]
[347527189,1735903861239,-843.53,9.808e-05,2]
[347527190,1735903861248,-1247.47,9.808e-05,2]
[347527191,1735903861257,-500.0,9.808e-05,2]
[347527192,1735903861266,-592.69,9.808e-05,2]
[347527193,1735903861277,-500.0,9.808e-05,2]
[347527194,1735903861286,-1658.3,9.808e-05,2]
[347527195,1735903861296,-500.0,9.808e-05,2]
[347527196,1735903861305,-641.16884578,9.808e-05,2]
[347527197,1735903861315,-1464.03,9.808e-05,2]
[347527198,1735903861325,-500.0,9.808e-05,2]
[347527199,1735903861334,-500.0,9.808e-05,2]
[347527200,1735903861344,-500.0,9.808e-05,2]
[347527201,1735903861354,-1005.11,9.808e-05,2]
[347527202,1735903861366,-519.95,9.808e-05,2]
[347527203,1735903861375,-500.0,9.808e-05,2]
[347527204,1735903861384,-1574.59,9.808e-05,2]
[347527205,1735903861394,-500.0,9.808e-05,2]
[347527206,1735903861403,-565.43,9.808e-05,2]
[347527207,1735903861413,-843.57,9.808e-05,2]
[347527208,1735903861423,-1652.0,9.808e-05,2]
[347527209,1735903861432,-808.1,9.808e-05,2]
[347527210,1735903861442,-629.25,9.808e-05,2]
[347527211,1735903861451,-764.88,9.808e-05,2]
[347527212,1735903861461,-1091.92,9.808e-05,2]
[347527213,1735903861470,-500.0,9.808e-05,2]
[347527214,1735903861479,-1803.37,9.808e-05,2]
[347527215,1735903861489,-547.2,9.808e-05,2]
[347527216,1735903861498,-793.55,9.808e-05,2]
[347527217,1735903861507,-1960.24,9.808e-05,2]
[347527218,1735903861516,-1098.5,9.808e-05,2]
[347527219,1735903861525,-1005.26,9.808e-05,2]
[347527220,1735903861534,-2287.89,9.808e-05,2]
[347527221,1735903861544,-1376.76,9.808e-05,2]
[347527222,1735903861554,-914.74,9.808e-05,2]
[347527223,1735903861563,-542.12,9.808e-05,2]
[347527224,1735903861572,-942.97,9.808e-05,2]
[347527225,1735903861581,-845.27,9.808e-05,2]
[347527226,1735903861590,-1785.49,9.808e-05,2]
[347527227,1735903861599,-4316.05,9.808e-05,2]
[347527228,1735903861610,-500.0,9.808e-05,2]
[347527229,1735903861619,-2159.97,9.808e-05,2]
[347527230,1735903861629,-736.25,9.808e-05,2]
[347527231,1735903861638,-1334.42,9.808e-05,2]
[347527232,1735903861647,-1495.62,9.808e-05,2]
[347527233,1735903861655,-754.17,9.808e-05,2]
[347527234,1735903861664,-500.0,9.808e-05,2]
[347527235,1735903861673,-650.62,9.808e-05,2]
[347527236,1735903861683,-4164.56,9.808e-05,2]
[347527237,1735903861692,-500.0,9.808e-05,2]
[347527238,1735903861700,-1625.31,9.808e-05,2]
[347527239,1735903861709,-500.0,9.808e-05,2]
[347527240,1735903861718,-611.39,9.808e-05,2]
[347527241,1735903861727,-500.0,9.808e-05,2]
[347527242,1735903861736,-986.21,9.808e-05,2]
[347527243,1735903861745,-1298.73,9.808e-05,2]
[347527244,1735903861754,-3531.11,9.808e-05,2]
[347527245,1735903861763,-1023.42,9.808e-05,2]
[347527246,1735903861772,-1089.53,9.808e-05,2]
[347527247,1735903861782,-5813.27,9.808e-05,2]
[347527248,1735903861791,-2817.31,9.808e-05,2]
[347527249,1735903861800,-1045.47,9.808e-05,2]
[347527250,1735903861809,-1481.72,9.808e-05,2]
[347527251,1735903861818,-3420.76,9.808e-05,2]
[347527252,1735903861828,-5258.68,9.808e-05,2]
[347527253,1735903861838,-997.31,9.808e-05,2]
[347527254,1735903861847,-857.28,9.808e-05,2]
[347527255,1735903861856,-10810.93,9.808e-05,2]
[347527256,1735903861868,-1042.24,9.808e-05,2]
[347527257,1735903861878,-1826.67,9.808e-05,2]
[347527258,1735903861887,-1028.72,9.808e-05,2]
[347527259,1735903861897,-4944.06,9.808e-05,2]
[347527260,1735903861907,-4381.19,9.808e-05,2]
[347527261,1735903861916,-1208.64,9.808e-05,2]
[347527262,1735903861926,-2263.34,9.808e-05,2]
[347527263,1735903861935,-8233.14,9.808e-05,2]
[347527264,1735903861946,-1743.67,9.808e-05,2]
[347527265,1735903861956,-1356.78,9.808e-05,2]
[347527266,1735903861966,-4030.14,9.808e-05,2]
[347527267,1735903861975,-1180.61,9.808e-05,2]
[347527268,1735903861985,-3155.79,9.808e-05,2]
[347527269,1735903861995,-1269.56,9.808e-05,2]
[347527270,1735903862005,-4857.77,9.808e-05,2]
[347527271,1735903862014,-1773.18,9.808e-05,2]
[347527272,1735903862023,-592.74,9.808e-05,2]
[347527273,1735903862033,-1267.3,9.808e-05,2]
[347527274,1735903862042,-8253.07,9.808e-05,2]
[347527275,1735903862052,-10330.45,9.808e-05,2]
[347527276,1735903862063,-500.0,9.808e-05,2]
[347527277,1735903862073,-9575.94,9.808e-05,2]
[347527278,1735903862082,-7775.68,9.808e-05,2]
[347527279,1735903862093,-3274.39,9.808e-05,2]
[347527280,1735903862102,-4887.13,9.808e-05,2]
[347527281,1735903862112,-1872.61,9.808e-05,2]
[347527282,1735903862122,-4449.35,9.808e-05,2]
[347527283,1735903862131,-3427.99,9.808e-05,2]
[347527284,1735903862141,-551.76,9.808e-05,2]
[347527285,1735903862151,-2327.98,9.808e-05,2]
[347527286,1735903862161,-4961.53,9.808e-05,2]
[347527287,1735903862170,-847.8,9.808e-05,2]
[347527288,1735903862179,-1585.98,9.808e-05,2]
[347527289,1735903862189,-2872.31,9.808e-05,2]
[347527290,1735903862198,-1639.91,9.808e-05,2]
[347527291,1735903862207,-1877.41,9.808e-05,2]
[347527292,1735903862217,-1119.93,9.808e-05,2]
[347527293,1735903862226,-2299.24,9.808e-05,2]
[347527294,1735903862236,-500.0,9.808e-05,2]
[347527295,1735903862246,-2261.75,9.808e-05,2]
[347527296,1735903862255,-500.0,9.808e-05,2]
[347527297,1735903862265,-500.0,9.808e-05,2]
[347527298,1735903862276,-660.66,9.808e-05,2]
[347527299,1735903862285,-526.47,9.808e-05,2]
[347527300,1735903862295,-2458.11,9.808e-05,2]
[347527301,1735903862305,-5361.51,9.808e-05,2]
[347527302,1735903862314,-1226.92,9.808e-05,2]
[347527303,1735903862324,-1974.28,9.808e-05,2]
[347527304,1735903862334,-899.29,9.808e-05,2]
[347527305,1735903862343,-10201.99,9.808e-05,2]
[347527306,1735903862353,-506.78,9.808e-05,2]
[347527307,1735903862365,-1905.76,9.808e-05,2]
[347527308,1735903862374,-1476.88,9.808e-05,2]
[347527309,1735903862384,-500.0,9.808e-05,2]
[347527310,1735903862394,-500.0,9.809e-05,2]
[347527311,1735903862404,-500.0,9.809e-05,2]
[347527312,1735903862413,-786.32,9.809e-05,2]
[347527313,1735903862423,-582.76,9.809e-05,2]
[347527314,1735903862433,-500.0,9.809e-05,2]
[347527315,1735903862443,-741.23,9.809e-05,2]
[347527316,1735903862453,-500.0,9.809e-05,2]
[347527317,1735903862462,-695.73,9.809e-05,2]
[347527318,1735903862472,-500.0,9.809e-05,2]
[347527319,1735903862481,-500.0,9.809e-05,2]
[347527320,1735903862490,-500.0,9.809e-05,2]
[347527321,1735903862500,-356.8812974,9.809e-05,2]
[347527322,1735903862510,-500.0,9.809e-05,2]
[347527323,1735903862519,-500.0,9.809e-05,2]
[347527324,1735903862529,-693.77,9.809e-05,2]
[347527325,1735903862539,-500.0,9.809e-05,2]
[347527326,1735903862549,-500.0,9.809e-05,2]
[347527327,1735903862559,-500.0,9.809e-05,2]
[347527328,1735903862569,-907.41,9.809e-05,2]
[347527329,1735903862579,-878.15,9.809e-05,2]
[347527330,1735903862589,-500.0,9.809e-05,2]
[347527331,1735903862598,-500.0,9.809e-05,2]
[347527332,1735903862608,-874.72,9.809e-05,2]
[347527333,1735903862618,-500.0,9.809e-05,2]
[347527334,1735903862628,-500.0,9.809e-05,2]
[347527335,1735903862638,-500.0,9.809e-05,2]
[347527336,1735903862648,-500.0,9.809e-05,2]
[347527337,1735903862657,-1033.7,9.809e-05,2]
[347527338,1735903862667,-628.62,9.809e-05,2]
[347527339,1735903862677,-563.93,9.809e-05,2]
[347527340,1735903862687,-500.0,9.809e-05,2]
[347527341,1735903862696,-500.0,9.809e-05,2]
[347527342,1735903862706,-500.0,9.809e-05,2]
[347527343,1735903862716,-500.0,9.809e-05,2]
[347527344,1735903862726,-500.0,9.809e-05,2]
[347527345,1735903862736,-500.0,9.809e-05,2]
[347527346,1735903862745,-500.0,9.809e-05,2]
[347527347,1735903862755,-500.0,9.809e-05,2]
[347527348,1735903862765,-500.0,9.809e-05,2]
[347527349,1735903862775,-3393.054164,9.809e-05,2]
[347527350,1735903862785,-975.61,9.809e-05,2]
[347527351,1735903862794,-500.0,9.809e-05,2]
[347527352,1735903862805,-720.4,9.809e-05,2]
[347527353,1735903862814,-500.0,9.809e-05,2]
[347527354,1735903862825,-699.88,9.809e-05,2]
[347527355,1735903862834,-500.0,9.809e-05,2]
[347527356,1735903862844,-527.2,9.809e-05,2]
[347527357,1735903862853,-3577.129262,9.809e-05,2]
[347527358,1735903862864,-500.0,9.809e-05,2]
[347527359,1735903862877,-657.55,9.809e-05,2]
[347527360,1735903862886,-1083.0,9.809e-05,2]
[347527361,1735903862896,-500.0,9.809e-05,2]
[347527362,1735903862905,-550.96,9.809e-05,2]
[347527363,1735903862915,-500.0,9.809e-05,2]
[347527364,1735903862924,-500.0,9.809e-05,2]
[347527365,1735903862934,-1091.28,9.809e-05,2]
[347527366,1735903862943,-500.0,9.809e-05,2]
[347527367,1735903862953,-620.43,9.809e-05,2]